bitfinex/quotes_BTCUSD_20250316
["timestamp","ask_amount","ask_price","bid_price","bid_amount"]
[1742154655401,0.01989442,83286.0,83280.0,1.704129]
[1742154655723,0.012006,83286.0,83283.0,0.002]
[1742154656042,0.204117,83285.0,83283.0,0.002]
[1742154656271,0.00788842,83284.0,83279.0,0.012007]
[1742154656780,0.00788842,83284.0,83283.0,0.002]
[1742154656979,0.00788842,83284.0,83279.0,0.012007]
[1742154657375,0.01989542,83284.0,83279.0,0.012007]
[1742154657576,0.01989542,83284.0,83283.0,0.002]
[1742154657781,0.00788842,83284.0,83283.0,0.002]
[1742154657989,0.00788842,83284.0,83282.0,0.192118]
[1742154658279,0.00788842,83284.0,83280.0,0.204127]
[1742154658451,0.00788842,83283.0,83281.0,0.012007]
[1742154658898,0.012006,83286.0,83281.0,0.012007]
[1742154659063,0.204117,83285.0,83280.0,0.204127]
[1742154659298,0.012007,83284.0,83279.0,0.014007]
[1742154659582,0.012007,83284.0,83283.0,0.002]
[1742154660167,0.012007,83284.0,83278.0,0.20480138]
[1742154660168,0.192124,83280.0,83278.0,0.01267438]
[1742154660382,0.204129,83281.0,83279.0,0.002]
[1742154660908,0.204132,83279.0,83278.0,0.01267438]
[1742154662622,0.012007,83280.0,83278.0,0.01267438]
[1742154662747,0.192125,83279.0,83278.0,0.01267438]
[1742154662945,0.192125,83279.0,83278.0,0.01467438]
[1742154663151,0.192125,83279.0,83278.0,0.01667438]
[1742154663351,0.192125,83279.0,83278.0,0.01467438]
[1742154663830,0.192125,83279.0,83278.0,0.01667438]
[1742154664039,0.204132,83279.0,83278.0,0.01667438]
[1742154664456,0.012007,83280.0,83278.0,0.01667438]
[1742154664457,0.199132,83280.0,83278.0,0.01667438]
[1742154664675,0.012007,83279.0,83278.0,0.01667438]
[1742154665245,0.01989059,83279.0,83278.0,0.01667438]
[1742154665962,0.01989059,83279.0,83278.0,0.01467438]
[1742154666147,0.01989059,83279.0,83278.0,0.01667438]
[1742154666582,0.01989059,83279.0,83278.0,0.01467438]
[1742154666775,0.01989059,83279.0,83278.0,0.01667438]
[1742154666938,0.012007,83279.0,83278.0,0.01467438]
[1742154667333,0.01989059,83279.0,83278.0,0.01467438]
[1742154667760,0.00788359,83279.0,83278.0,0.01467438]
[1742154667966,0.199131,83280.0,83278.0,0.01667438]
[1742154668512,0.01989059,83279.0,83278.0,0.00442715]
[1742154668923,0.01989059,83279.0,83278.0,0.00242715]
[1742154669119,0.01989059,83279.0,83278.0,0.00442715]
[1742154669773,0.01989059,83279.0,83278.0,0.00042715]
[1742154669990,0.0213917,83279.0,83278.0,0.00242715]
[1742154670353,0.01989059,83279.0,83278.0,0.00042715]
[1742154670553,0.01989059,83279.0,83278.0,0.00142715]
[1742154672470,0.03871076,83279.0,83278.0,0.00142715]
[1742154673381,0.01989059,83279.0,83278.0,0.00142715]
[1742154674335,0.01965659,83279.0,83278.0,0.00142715]
[1742154674543,0.00788359,83279.0,83278.0,0.00142715]
[1742154675001,0.012005,83292.0,83283.0,0.012007]
[1742154675169,0.427606,83290.0,83283.0,0.012007]
[1742154675379,0.619706,83290.0,83284.0,0.192113]
[1742154675582,0.192104,83288.0,83283.0,0.012007]
[1742154675781,0.192104,83289.0,83283.0,0.012007]
[1742154675997,0.619706,83290.0,83283.0,0.20412]
[1742154676204,0.192104,83289.0,83283.0,0.20412]
[1742154676612,0.20411,83289.0,83283.0,0.20412]
[1742154676817,0.204113,83287.0,83282.0,0.012007]
[1742154677017,0.012007,83284.0,83283.0,0.002]
[1742154677439,0.012007,83284.0,83283.0,0.004]
[1742154677597,0.012007,83284.0,83283.0,0.002]
[1742154677998,0.012006,83287.0,83283.0,0.002]
[1742154678657,0.012006,83287.0,83281.0,0.012007]
[1742154678814,0.204117,83286.0,83281.0,0.012007]
[1742154679024,0.204117,83286.0,83283.0,0.002]
[1742154679460,0.012006,83286.0,83281.0,0.012007]
[1742154679636,0.012006,83286.0,83283.0,0.003]
[1742154679848,0.204114,83287.0,83282.0,0.012007]
[1742154681125,0.204114,83287.0,83281.0,0.209125]
[1742154681126,0.204118,83285.0,83281.0,0.005]
[1742154681555,0.192112,83285.0,83281.0,0.005]
[1742154681770,0.2042822,83287.0,83281.0,0.017007]
[1742154682223,0.01881733,83285.0,83281.0,0.209125]
[1742154682445,0.01881733,83285.0,83283.0,0.012007]
[1742154682861,0.01881733,83285.0,83282.0,0.195116]
[1742154683056,0.01881733,83285.0,83282.0,0.192116]
[1742154683284,0.01881733,83285.0,83281.0,0.003]
[1742154683545,0.012007,83284.0,83279.0,0.192125]
[1742154683749,0.012007,83284.0,83282.0,0.002]
[1742154683951,0.012007,83284.0,83283.0,0.003]
[1742154684165,0.012007,83284.0,83279.0,0.204132]
[1742154684368,0.012007,83284.0,83279.0,0.012007]
[1742154684560,0.01881733,83285.0,83281.0,0.002]
[1742154685036,0.01881733,83285.0,83280.0,0.204129]
[1742154685231,0.192125,83280.0,83278.0,0.00042715]
[1742154685402,0.204132,83280.0,83278.0,0.00042715]
[1742154686215,0.00786688,83279.0,83278.0,0.00042715]
[1742154686632,0.00786688,83279.0,83278.0,0.00342715]
[1742154687406,0.01987388,83279.0,83278.0,0.00242715]
[1742154687805,0.09497388,83279.0,83278.0,0.00042715]
[1742154688010,0.14447388,83279.0,83278.0,0.00042715]
[1742154688214,0.57611602,83279.0,83278.0,0.00042715]
[1742154688384,0.57461473,83279.0,83278.0,0.00042715]
[1742154688790,0.58061473,83279.0,83278.0,1.5e-07]
[1742154688925,0.58061473,83279.0,83278.0,0.00300015]
[1742154689135,0.58161473,83279.0,83278.0,0.00300015]
[1742154689366,0.58061473,83279.0,83278.0,1.5e-07]
[1742154689666,0.58061473,83279.0,83278.0,0.00100015]
[1742154689884,0.58061473,83279.0,83269.0,0.0003384]
[1742154689885,0.012009,83270.0,83269.0,0.0003384]
[1742154690086,0.49087728,83270.0,83269.0,0.0003384]
[1742154690371,0.49723047,83270.0,83269.0,0.0003384]
[1742154692053,0.93165451,83270.0,83269.0,0.0003384]
[1742154692255,0.93165451,83270.0,83269.0,0.0013384]
[1742154693448,0.93165451,83270.0,83269.0,0.0003384]
[1742154693868,0.93165451,83270.0,83269.0,0.0013384]
[1742154697643,0.93265451,83270.0,83269.0,0.0013384]
[1742154697996,0.93165451,83270.0,83269.0,0.0013384]
[1742154698194,0.93165451,83270.0,83269.0,0.0003384]
[1742154698384,0.93161451,83270.0,83269.0,0.0003384]
[1742154699427,0.93261451,83270.0,83269.0,0.0003384]
[1742154699639,0.77203366,83270.0,83269.0,0.0003384]
[1742154699846,0.64743366,83270.0,83269.0,0.0003384]
[1742154700054,0.42445462,83270.0,83269.0,0.0003384]
[1742154700468,0.42345462,83270.0,83269.0,0.0003384]
[1742154700872,0.00885462,83270.0,83269.0,0.0003384]
[1742154701212,0.192137,83274.0,83269.0,0.0003384]
[1742154701405,0.204145,83274.0,83269.0,0.0003384]
[1742154701624,0.00782691,83273.0,83269.0,0.0003384]
[1742154701830,0.00782691,83273.0,83269.0,0.0013384]
[1742154702043,0.00782691,83273.0,83269.0,0.0003384]
[1742154702376,0.192141,83272.0,83269.0,0.0013384]
[1742154702573,0.204155,83270.0,83269.0,0.0003384]
[1742154702915,0.204155,83270.0,83269.0,0.0023384]
[1742154703272,0.21198191,83270.0,83269.0,0.0003384]
[1742154703618,0.21348309,83270.0,83269.0,0.0003384]
[1742154703834,0.21198191,83270.0,83269.0,0.0003384]
[1742154704570,0.23080464,83270.0,83269.0,0.0023384]
[1742154704953,0.23080464,83270.0,83269.0,0.0003384]
[1742154705154,0.23080464,83270.0,83269.0,0.0023384]
[1742154709210,0.21198191,83270.0,83269.0,0.0023384]
[1742154716738,0.23080387,83270.0,83269.0,0.0023384]
[1742154717773,0.21198191,83270.0,83269.0,0.0023384]
[1742154719326,0.29048191,83270.0,83269.0,0.0023384]
[1742154720764,0.00782691,83270.0,83269.0,0.2064954]
[1742154720971,0.0001692,83278.0,83276.0,0.012008]
[1742154721183,0.0001692,83278.0,83277.0,0.012008]
[1742154723392,0.0001692,83278.0,83277.0,0.02614955]
[1742154724158,0.2043032,83278.0,83277.0,0.01414155]
[1742154724484,0.21177992,83278.0,83277.0,0.01414155]
[1742154725073,0.23059931,83278.0,83277.0,0.01414155]
[1742154726087,0.21177992,83278.0,83277.0,0.01414155]
[1742154727309,0.00764592,83278.0,83277.0,0.02614955]
[1742154727622,0.0001692,83278.0,83277.0,0.02614955]
[1742154728036,0.0001692,83278.0,83277.0,0.32614955]
[1742154728403,0.0001692,83278.0,83277.0,0.32414955]
[1742154728617,0.0001692,83278.0,83277.0,0.32814955]
[1742154729771,0.0001692,83278.0,83277.0,1.82814955]
[1742154731218,0.0009867,83295.0,83278.0,0.504134]
[1742154731417,0.012003,83307.0,83278.0,0.504134]
[1742154731418,0.192063,83306.0,83278.0,0.504134]
[1742154731619,0.012003,83307.0,83278.0,0.504134]
[1742154731775,0.204065,83307.0,83278.0,0.504134]
[1742154731974,0.204065,83307.0,83278.0,2.004134]
[1742154732176,1.5e-07,83279.0,83278.0,2.67130903]
[1742154732386,1.5e-07,83279.0,83278.0,2.68484988]
[1742154733108,1.5e-07,83279.0,83278.0,2.68784988]
[1742154733321,0.0009813,83317.0,83312.0,0.012003]
[1742154733322,0.0129833,83317.0,83312.0,0.012003]
[1742154733530,0.00025816,83313.0,83312.0,0.012003]
[1742154733728,0.00025816,83313.0,83311.0,0.192049]
[1742154733931,0.00777534,83313.0,83311.0,0.192049]
[1742154734149,0.00025816,83313.0,83311.0,0.192049]
[1742154734369,0.00751718,83312.0,83310.0,1.5]
[1742154734583,0.01907142,83313.0,83312.0,0.001]
[1742154734781,0.03107342,83313.0,83310.0,1.5]
[1742154734985,0.2306386,83313.0,83307.0,0.012003]
[1742154735164,0.2306386,83313.0,83308.0,0.012003]
[1742154735389,0.204054,83311.0,83307.0,1.5]
[1742154735621,0.03107342,83313.0,83307.0,1.71633111]
[1742154735825,0.01907142,83313.0,83308.0,0.012003]
[1742154735964,0.01907142,83313.0,83311.0,0.001]
[1742154736378,0.00751718,83312.0,83310.0,0.001]
[1742154736602,0.00025816,83313.0,83311.0,0.204054]
[1742154736786,0.00025816,83313.0,83311.0,0.012003]
[1742154736988,0.00025816,83313.0,83311.0,0.204053]
[1742154737192,0.00025816,83313.0,83312.0,0.012003]
[1742154738316,0.00025816,83313.0,83311.0,0.003]
[1742154738548,0.0077948,83313.0,83311.0,0.003]
[1742154738752,0.00025816,83313.0,83311.0,0.003]
[1742154738958,0.00753664,83312.0,83311.0,0.003]
[1742154739865,0.00753664,83312.0,83311.0,0.504054]
[1742154740298,0.00025816,83313.0,83312.0,0.012003]
[1742154741395,7.216e-05,83313.0,83312.0,0.012003]
[1742154741614,7.216e-05,83313.0,83312.0,0.015003]
[1742154741812,7.216e-05,83313.0,83312.0,0.018003]
[1742154743134,7.216e-05,83313.0,83312.0,0.09840749]
[1742154743558,7.216e-05,83313.0,83312.0,0.097803]
[1742154743925,7.216e-05,83313.0,83312.0,0.015003]
[1742154744136,7.216e-05,83313.0,83312.0,0.012003]
[1742154744393,7.216e-05,83313.0,83312.0,0.021003]
[1742154744818,7.216e-05,83313.0,83312.0,0.018003]
[1742154745318,7.216e-05,83313.0,83312.0,0.024003]
[1742154745777,7.216e-05,83313.0,83312.0,1.524003]
[1742154745982,7.216e-05,83313.0,83312.0,1.824003]
[1742154746840,7.216e-05,83313.0,83312.0,1.869003]
[1742154747730,7.216e-05,83313.0,83312.0,1.857003]
[1742154748105,7.216e-05,83313.0,83312.0,0.324003]
[1742154749449,7.216e-05,83313.0,83312.0,0.012]
[1742154749627,0.01207416,83313.0,83312.0,0.006]
[1742154749821,0.01930453,83313.0,83312.0,0.006]
[1742154750027,0.03811458,83313.0,83312.0,0.006]
[1742154750490,0.012003,83308.0,83304.0,0.30903691]
[1742154750668,0.192063,83306.0,83304.0,0.30903691]
[1742154750880,0.03088421,83313.0,83305.0,0.012004]
[1742154751046,0.03088421,83313.0,83312.0,0.006]
[1742154751246,0.01888221,83313.0,83312.0,0.006]
[1742154751679,0.01888221,83313.0,83312.0,0.004]
[1742154752653,0.22293021,83313.0,83312.0,0.004]
[1742154753755,0.22293021,83313.0,83312.0,0.008]
[1742154756475,0.03088421,83313.0,83312.0,0.008]
[1742154756887,0.15858421,83313.0,83312.0,0.008]
[1742154757448,0.13977416,83313.0,83312.0,0.008]
[1742154757968,0.012004,83305.0,83303.0,0.01178213]
[1742154758152,0.19206,83307.0,83300.0,0.012004]
[1742154758347,0.00722855,83304.0,83301.0,0.204076]
[1742154758554,0.012003,83311.0,83306.0,0.012003]
[1742154758753,0.012003,83311.0,83303.0,0.204073]
[1742154758754,0.012003,83311.0,83304.0,0.204069]
[1742154759676,0.012003,83311.0,83303.0,0.02412487]
[1742154759677,0.012003,83308.0,83303.0,0.02412487]
[1742154759901,0.192053,83310.0,83305.0,0.192064]
[1742154761157,0.19928334,83309.0,83303.0,0.01212087]
[1742154761364,0.19928334,83309.0,83305.0,0.002]
[1742154761565,0.012003,83308.0,83305.0,0.002]
[1742154761766,0.012003,83308.0,83305.0,0.005]
[1742154761967,0.00722534,83307.0,83303.0,0.21638935]
[1742154762288,0.00722534,83307.0,83303.0,0.21938935]
[1742154762693,0.00722534,83307.0,83303.0,0.02732135]
[1742154763168,0.00722534,83307.0,83306.0,0.204065]
[1742154763579,0.01881229,83308.0,83307.0,0.012003]
[1742154765081,0.01881229,83308.0,83307.0,0.015003]
[1742154765713,0.01881229,83308.0,83307.0,0.018003]
[1742154766712,7.216e-05,83313.0,83312.0,0.012003]
[1742154766917,7.216e-05,83313.0,83312.0,0.204052]
[1742154768093,7.216e-05,83313.0,83312.0,0.207052]
[1742154768295,7.216e-05,83313.0,83312.0,0.20765636]
[1742154768519,7.216e-05,83313.0,83312.0,0.58545636]
[1742154768732,7.216e-05,83313.0,83312.0,2.084852]
[1742154769594,7.216e-05,83313.0,83312.0,2.083852]
[1742154770001,7.216e-05,83313.0,83312.0,2.089852]
[1742154770205,7.216e-05,83313.0,83312.0,2.087852]
[1742154770406,7.216e-05,83313.0,83312.0,2.081852]
[1742154770562,7.216e-05,83313.0,83312.0,2.087852]
[1742154771093,7.216e-05,83313.0,83312.0,2.093852]
[1742154776467,7.216e-05,83313.0,83312.0,2.016052]
[1742154777932,7.216e-05,83313.0,83312.0,0.516052]
[1742154778138,7.216e-05,83313.0,83312.0,0.661572]
[1742154778420,7.216e-05,83313.0,83312.0,2.161572]
[1742154778623,0.00024136,83313.0,83312.0,2.161572]
[1742154781585,0.00024136,83313.0,83312.0,0.661572]
[1742154782014,0.00024136,83313.0,83312.0,2.161572]
[1742154787795,0.00030036,83331.0,83330.0,0.204007]
[1742154788275,0.0782,83334.0,83332.0,0.204002]
[1742154788966,0.0782,83334.0,83331.0,0.012]
[1742154789969,0.0782,83334.0,83331.0,0.204003]
[1742154790144,0.0782,83334.0,83331.0,0.21631428]
[1742154790346,0.0782,83334.0,83331.0,0.21731428]
[1742154790683,0.0782,83334.0,83333.0,0.204]
[1742154791102,0.08546095,83334.0,83333.0,0.204]
[1742154791676,0.0782,83334.0,83333.0,0.204]
[1742154792977,0.0782,83334.0,83333.0,0.205]
[1742154793177,0.0782,83334.0,83333.0,0.206]
[1742154794168,0.08546125,83334.0,83333.0,0.002]
[1742154794819,0.28945825,83334.0,83333.0,0.002]
[1742154795023,0.33655825,83334.0,83333.0,0.002]
[1742154802527,0.33655825,83334.0,83333.0,0.001]
[1742154803166,0.204035,83319.0,83318.0,0.01221206]
[1742154803299,0.280935,83319.0,83318.0,0.01221206]
[1742154803494,0.280935,83319.0,83313.0,0.1454]
[1742154803495,0.192037,83317.0,83313.0,0.1454]
[1742154803695,0.012002,83318.0,83313.0,0.1454]
[1742154803924,0.280935,83319.0,83313.0,0.1454]
[1742154804125,0.088901,83324.0,83318.0,0.012002]
[1742154804327,0.0769,83324.0,83319.0,0.204035]
[1742154804682,0.00724802,83323.0,83320.0,0.012001]
[1742154806855,0.00724802,83323.0,83320.0,0.014001]
[1742154807419,0.00724802,83323.0,83321.0,0.192028]
[1742154807874,0.204018,83326.0,83321.0,0.192028]
[1742154808057,0.00724802,83322.0,83321.0,0.192028]
[1742154808261,0.192008,83330.0,83323.0,0.204022]
[1742154808466,0.0769,83335.0,83333.0,0.012]
[1742154808690,0.011999,83335.0,83329.0,0.012]
[1742154809041,0.011999,83334.0,83329.0,0.012]
[1742154809421,0.203997,83334.0,83329.0,0.012]
[1742154809864,0.191995,83336.0,83330.0,0.012]
[1742154810087,0.203994,83336.0,83331.0,0.012]
[1742154810247,0.203997,83335.0,83330.0,0.012]
[1742154810448,0.011999,83334.0,83329.0,0.204008]
[1742154810651,0.203999,83334.0,83329.0,0.205008]
[1742154810855,0.012,83332.0,83330.0,0.001]
[1742154811206,0.011999,83334.0,83330.0,0.001]
[1742154811394,0.203999,83334.0,83330.0,0.001]
[1742154811618,0.203999,83334.0,83329.0,0.001]
[1742154811791,0.203999,83334.0,83328.0,0.204012]
[1742154812018,0.204005,83332.0,83330.0,0.001]
[1742154812247,0.012,83331.0,83330.0,0.001]
[1742154812747,0.08949999,83331.0,83330.0,0.001]
[1742154812919,0.1342,83331.0,83330.0,0.001]
[1742154813328,0.012002,83319.0,83318.0,0.01188422]
[1742154813537,0.012002,83319.0,83314.0,0.3]
[1742154814332,0.204027,83322.0,83317.0,0.012002]
[1742154814708,0.00725815,83321.0,83317.0,0.012002]
[1742154814916,0.00725815,83321.0,83315.0,0.19204]
[1742154815118,0.19928815,83321.0,83315.0,0.19204]
[1742154815324,0.21128915,83321.0,83315.0,0.19204]
[1742154815537,0.00725815,83321.0,83320.0,0.19203]
[1742154815756,0.00725815,83321.0,83320.0,0.204031]
[1742154815986,0.204012,83328.0,83320.0,0.204031]
[1742154815987,0.012,83327.0,83320.0,0.204031]
[1742154816183,0.192016,83326.0,83320.0,1.704031]
[1742154816389,0.19927415,83326.0,83320.0,1.704031]
[1742154816616,0.00725815,83326.0,83323.0,0.192022]
[1742154816823,0.00725815,83326.0,83325.0,0.20402]
[1742154817006,0.0001692,83332.0,83331.0,0.012]
[1742154817622,0.0001692,83332.0,83331.0,0.204005]
[1742154818163,0.0001692,83332.0,83331.0,0.206005]
[1742154818604,0.0001692,83332.0,83331.0,0.014]
[1742154818812,0.0001692,83332.0,83331.0,0.002]
[1742154819979,0.0001692,83332.0,83331.0,0.003]
[1742154821284,0.00743173,83332.0,83331.0,0.003]
[1742154825128,0.01943173,83332.0,83331.0,0.003]
[1742154826543,0.03823892,83332.0,83331.0,0.003]
[1742154826746,0.16463889,83332.0,83331.0,0.003]
[1742154826900,0.16313892,83332.0,83331.0,0.003]
[1742154827514,0.16313892,83332.0,83315.0,0.49204]
[1742154827758,0.012001,83321.0,83315.0,0.49204]
[1742154828160,0.00725721,83320.0,83315.0,0.3]
[1742154828363,0.192033,83319.0,83315.0,0.3]
[1742154828936,0.00725721,83318.0,83315.0,0.3]
[1742154829322,0.00725721,83318.0,83317.0,0.012002]
[1742154829723,0.192021,83325.0,83319.0,0.012002]
[1742154830161,0.00725721,83324.0,83322.0,0.204027]
[1742154830453,0.0001692,83332.0,83327.0,0.012]
[1742154830647,0.0001692,83332.0,83328.0,0.192012]
[1742154831456,0.01897695,83332.0,83328.0,0.192012]
[1742154831683,0.01897695,83332.0,83328.0,0.204012]
[1742154832112,0.204012,83328.0,83327.0,0.002]
[1742154832914,0.192016,83327.0,83323.0,1.5]
[1742154833316,0.204016,83327.0,83323.0,1.5]
[1742154834081,0.204022,83325.0,83323.0,1.5]
[1742154834289,0.012001,83325.0,83323.0,1.5]
[1742154834502,0.012,83329.0,83327.0,0.003]
[1742154834851,0.012,83329.0,83324.0,0.192021]
[1742154835088,0.012,83329.0,83323.0,0.015001]
[1742154835290,0.012,83329.0,83323.0,0.018001]
[1742154835817,0.012,83327.0,83323.0,0.003]
[1742154835955,0.012,83327.0,83324.0,0.002]
[1742154836156,0.01880792,83328.0,83324.0,0.002]
[1742154836364,0.00725167,83327.0,83324.0,0.014001]
[1742154837327,0.00725167,83327.0,83325.0,0.012001]
[1742154837726,0.00725167,83327.0,83326.0,0.012001]
[1742154838153,0.0001692,83332.0,83330.0,0.012]
[1742154838510,0.00725344,83331.0,83330.0,0.204007]
[1742154839328,0.0001692,83332.0,83331.0,0.012]
[1742154841850,0.0001692,83332.0,83331.0,0.013]
[1742154842481,0.0001692,83332.0,83331.0,0.015]
[1742154847545,0.0001692,83332.0,83331.0,0.3156038]
[1742154847807,0.0001692,83332.0,83331.0,1.815]
[1742154848321,0.0001692,83332.0,83331.0,1.814]
[1742154848495,0.0001692,83332.0,83331.0,1.818]
[1742154848693,0.0001692,83332.0,83331.0,1.816]
[1742154848872,0.0001692,83332.0,83331.0,1.82]
[1742154849796,0.0001692,83332.0,83331.0,1.816]
[1742154850030,0.0001692,83332.0,83331.0,1.812]
[1742154850187,0.0001692,83332.0,83331.0,1.824]
[1742154851682,0.0001692,83332.0,83331.0,1.9071]
[1742154852203,2e-07,83332.0,83331.0,2.43837503]
[1742154852421,4.565e-05,83346.0,83345.0,0.503971]
[1742154852623,4.565e-05,83346.0,83345.0,0.697091]
[1742154852829,0.0001692,83354.0,83353.0,0.503951]
[1742154853048,0.0001692,83354.0,83353.0,0.587051]
[1742154853461,0.0001692,83371.0,83361.0,0.203932]
[1742154853680,0.0001692,83371.0,83361.0,0.64965427]
[1742154853886,0.0001692,83371.0,83363.0,0.011995]
[1742154854083,0.0001692,83371.0,83363.0,0.01259728]
[1742154854492,0.0001692,83371.0,83363.0,1.51259728]
[1742154854694,0.0001692,83371.0,83363.0,1.511995]
[1742154855600,0.0001692,83371.0,83363.0,1.52385793]
[1742154856009,0.0001692,83371.0,83363.0,1.61295793]
[1742154857379,0.0001692,83371.0,83363.0,1.61895793]
[1742154857600,0.0001692,83371.0,83363.0,1.61295793]
[1742154857979,0.0001692,83371.0,83363.0,1.61895793]
[1742154859116,0.0001692,83371.0,83363.0,2.03065793]
[1742154860924,0.0001692,83371.0,83363.0,1.94755793]
[1742154861088,0.20391,83370.0,83363.0,0.59255793]
[1742154861292,0.011995,83368.0,83363.0,0.58056293]
[1742154861491,0.0119952,83364.0,83363.0,0.46886293]
[1742154861691,0.0261506,83364.0,83363.0,0.46886293]
[1742154862097,0.0261506,83364.0,83363.0,0.48085793]
[1742154862322,0.01879848,83364.0,83363.0,0.48085793]
[1742154862530,0.01879848,83364.0,83363.0,0.47485793]
[1742154862729,0.01879848,83364.0,83363.0,0.46885793]
[1742154862958,0.01879848,83364.0,83363.0,0.48085793]
[1742154863188,0.01879848,83364.0,83363.0,0.47485793]
[1742154863391,0.01879848,83364.0,83363.0,0.46885793]
[1742154863594,0.01879848,83364.0,83363.0,0.47385793]
[1742154863845,2e-07,83364.0,83363.0,0.47885793]
[1742154864516,2e-07,83364.0,83363.0,1.97385793]
[1742154864678,0.0001694,83366.0,83365.0,0.311995]
[1742154865202,0.00058115,83366.0,83365.0,0.311995]
[1742154865609,0.00058115,83366.0,83365.0,1.811995]
[1742154866577,0.00058115,83366.0,83365.0,1.817995]
[1742154867196,0.00058115,83366.0,83365.0,1.823995]
[1742154872123,0.0001692,83371.0,83370.0,0.011994]
[1742154872266,0.00029265,83371.0,83370.0,0.011994]
[1742154872466,0.00029265,83371.0,83370.0,0.503909]
[1742154873844,0.00029265,83371.0,83370.0,0.515909]
[1742154874423,0.00029265,83371.0,83370.0,2.015909]
[1742154875427,0.00029265,83371.0,83370.0,2.009909]
[1742154875879,0.00029265,83371.0,83370.0,2.015909]
[1742154876086,0.00029265,83371.0,83370.0,2.003909]
[1742154876257,0.00029265,83371.0,83370.0,2.12348403]
[1742154876461,0.00029265,83371.0,83370.0,2.13548403]
[1742154877095,0.0001692,83385.0,83384.0,0.503875]
[1742154877394,0.0001692,83385.0,83384.0,0.648795]
[1742154878079,0.0001692,83385.0,83384.0,2.148795]
[1742154879050,0.0009691,83389.0,83388.0,0.503866]
[1742154879648,0.0001692,83397.0,83389.0,0.311991]
[1742154880758,0.0001692,83397.0,83389.0,0.011991]
[1742154881636,0.0001692,83397.0,83389.0,0.017991]
[1742154882060,0.0001692,83397.0,83389.0,0.023991]
[1742154882266,1.16394463,83390.0,83389.0,0.023991]
[1742154882472,1.1526852,83390.0,83389.0,0.023991]
[1742154882672,1.16005759,83390.0,83389.0,0.735691]
[1742154882898,1.1132763,83390.0,83389.0,0.735691]
[1742154883098,0.9977663,83390.0,83389.0,0.735691]
[1742154883359,0.9977663,83390.0,83389.0,0.729691]
[1742154884097,0.9977663,83390.0,83389.0,0.723691]
[1742154884304,0.9977663,83390.0,83389.0,0.874531]
[1742154884530,0.9977663,83390.0,83389.0,2.374531]
[1742154885061,0.9977663,83390.0,83389.0,2.368531]
[1742154885619,0.9977663,83390.0,83389.0,2.374531]
[1742154886019,0.9977663,83390.0,83389.0,2.368531]
[1742154886221,0.9977663,83390.0,83389.0,2.380531]
[1742154886831,0.9977663,83390.0,83389.0,2.374531]
[1742154887014,0.9977663,83390.0,83389.0,2.380531]
[1742154887902,0.9979354,83390.0,83389.0,2.380531]
[1742154888211,0.9979354,83390.0,83389.0,1.968831]
[1742154892536,1.0900264,83390.0,83389.0,1.512]
[1742154892759,1.0900264,83390.0,83389.0,0.012]
[1742154892964,1.15731953,83390.0,83389.0,0.012]
[1742154893369,1.15731953,83390.0,83389.0,0.006]
[1742154893796,1.15731953,83390.0,83389.0,0.009]
[1742154894256,1.15731953,83390.0,83389.0,0.003]
[1742154894583,0.011992,83384.0,83376.0,0.3]
[1742154894778,0.011992,83384.0,83375.0,0.011994]
[1742154894779,0.203885,83380.0,83375.0,0.011994]
[1742154895221,0.203885,83380.0,83374.0,0.3]
[1742154895491,0.09889587,83379.0,83374.0,0.3]
[1742154895904,0.29818559,83379.0,83376.0,0.3]
[1742154896046,0.203892,83378.0,83376.0,0.3]
[1742154896656,0.00739372,83377.0,83376.0,0.3]
[1742154897505,0.191899,83377.0,83376.0,0.006]
[1742154897709,0.203892,83377.0,83376.0,0.006]
[1742154897860,0.01938672,83377.0,83376.0,0.006]
[1742154898057,0.00739372,83377.0,83376.0,0.006]
[1742154898558,0.283989,83379.0,83376.0,0.006]
[1742154898796,0.00739372,83378.0,83376.0,0.006]
[1742154898995,0.01938672,83378.0,83375.0,1.5]
[1742154899197,0.011993,83378.0,83376.0,0.006]
[1742154899374,0.011993,83378.0,83376.0,0.012]
[1742154899575,0.191876,83387.0,83378.0,0.011993]
[1742154899858,0.203875,83385.0,83377.0,0.191894]
[1742154900262,0.00739372,83384.0,83379.0,0.203886]
[1742154900455,0.00739372,83384.0,83378.0,0.203887]
[1742154901214,0.00739372,83384.0,83381.0,0.011993]
[1742154901611,0.01879466,83383.0,83381.0,0.20388]
[1742154902080,0.01879466,83383.0,83382.0,0.011992]
[1742154902909,0.01879466,83383.0,83376.0,0.0003384]
[1742154902910,0.060493,83378.0,83376.0,0.0003384]
[1742154903079,0.087693,83377.0,83376.0,0.0003384]
[1742154903747,0.087693,83377.0,83376.0,0.2042324]
[1742154903748,0.0757,83377.0,83376.0,0.2042324]
[1742154903931,0.0757,83382.0,83377.0,0.011993]
[1742154904135,0.0757,83382.0,83377.0,0.015993]
[1742154904335,0.087692,83382.0,83377.0,0.004]
[1742154904539,0.20389,83378.0,83377.0,0.004]
[1742154904759,0.27959,83378.0,83377.0,0.004]
[1742154905540,0.32809,83378.0,83377.0,0.004]
[1742154906114,0.011993,83377.0,83376.0,0.0003384]
[1742154906523,0.01349231,83377.0,83376.0,0.0083384]
[1742154906730,0.087693,83377.0,83376.0,0.0083384]
[1742154906924,0.087693,83377.0,83376.0,0.0003384]
[1742154907082,0.0891924,83377.0,83376.0,0.0003384]
[1742154907807,0.0891924,83377.0,83376.0,0.0043384]
[1742154908029,0.0891924,83377.0,83376.0,0.0083384]
[1742154908030,0.087693,83377.0,83376.0,0.0083384]
[1742154909137,0.0757,83377.0,83376.0,0.0083384]
[1742154909758,0.267599,83377.0,83376.0,0.0083384]
[1742154909940,0.267599,83377.0,83376.0,1.5083384]
[1742154910347,0.279592,83377.0,83376.0,1.5083384]
[1742154911187,0.28694667,83377.0,83376.0,1.5083384]
[1742154911536,0.28694667,83377.0,83376.0,0.0083384]
[1742154912844,0.01934767,83377.0,83376.0,0.0083384]
[1742154913249,0.011993,83377.0,83376.0,0.0083384]
[1742154913455,0.01934767,83377.0,83376.0,0.0083384]
[1742154913659,0.09654694,83377.0,83376.0,0.0083384]
[1742154913862,0.16384399,83377.0,83376.0,0.0083384]